fUST/lending_fUST_20240920
["ID","MTS","AMOUNT","RATE_DAILY","PERIOD"]
[338648922,1726845055589,-500.0,0.00016986,2]
[338648923,1726845055599,-710.33,0.00016986,2]
[338648924,1726845055608,-1216.41,0.00016986,2]
[338648925,1726845055617,-937.35,0.00016986,2]
[338648926,1726845055626,-500.0,0.00016986,2]
[338648927,1726845055636,-500.0,0.00016986,2]
[338648928,1726845055645,-500.0,0.00016986,2]
[338648929,1726845055653,-1191.1,0.00016986,2]
[338648930,1726845055663,-500.0,0.00016986,2]
[338648931,1726845055672,-500.0,0.00016986,2]
[338648932,1726845055682,-861.2,0.00016986,2]
[338648933,1726845055691,-652.49,0.00016986,2]
[338648934,1726845055701,-500.0,0.00016986,2]
[338648935,1726845055709,-500.0,0.00016986,2]
[338648936,1726845055718,-232.75,0.00016986,2]
[338648937,1726845055727,-500.0,0.00016986,2]
[338648938,1726845055737,-500.0,0.00016986,2]
[338648939,1726845055746,-190.24451271,0.00016986,2]
[338648940,1726845055755,-500.0,0.00016986,2]
[338648941,1726845055765,-184.96654,0.00016986,2]
[338648942,1726845055774,-1052.65,0.00016986,2]
[338648943,1726845055783,-1048.92,0.00016986,2]
[338648944,1726845055792,-500.0,0.00016986,2]
[338648945,1726845055801,-776.74,0.00016986,2]
[338648946,1726845055810,-505.47665703,0.00016986,2]
[338648947,1726845055819,-722.7,0.00016986,2]
[338648948,1726845055829,-500.0,0.00016986,2]
[338648949,1726845055838,-532.53,0.00016986,2]
[338648950,1726845055847,-258.37886384,0.00016986,2]
[338648951,1726845055856,-500.0,0.00016986,2]
[338648952,1726845055865,-517.84537314,0.00016986,2]
[338648953,1726845055874,-684.84,0.00016986,2]
[338648954,1726845055882,-597.12558644,0.00016986,2]
[338648955,1726845055891,-230.17,0.00016986,2]
[338648956,1726845055900,-500.0,0.00016986,2]
[338648957,1726845055909,-500.0,0.00016986,2]
[338648958,1726845055918,-500.0,0.00016986,2]
[338648959,1726845055928,-500.0,0.00016986,2]
[338648960,1726845055937,-612.28,0.00016986,2]
[338648961,1726845055946,-346.175067,0.00016986,2]
[338648962,1726845055955,-346.175067,0.00016986,2]
[338648963,1726845055964,-500.0,0.00016986,2]
[338648964,1726845055974,-500.0,0.00016986,2]
[338648965,1726845055983,-500.0,0.00016986,2]
[338648966,1726845055992,-529.66,0.00016986,2]
[338648967,1726845056001,-1479.31,0.00016986,2]
[338648968,1726845056010,-500.0,0.00016986,2]
[338648969,1726845056019,-500.0,0.00016986,2]
[338648970,1726845056028,-500.0,0.00016986,2]
[338648971,1726845056037,-500.0,0.00016986,2]
[338648972,1726845056046,-500.0,0.00016986,2]
[338648973,1726845056055,-500.0,0.00016986,2]
[338648974,1726845056064,-638.16,0.00016986,2]
[338648975,1726845056073,-500.0,0.00016986,2]
[338648976,1726845056083,-500.0,0.00016986,2]
[338648977,1726845056091,-500.0,0.00016986,2]
[338648978,1726845056100,-795.9,0.00016986,2]
[338648979,1726845056110,-202.42,0.00016986,2]
[338648980,1726845056119,-500.0,0.00016986,2]
[338648981,1726845056129,-1125.11,0.00016986,2]
[338648982,1726845056138,-500.0,0.00016986,2]
[338648983,1726845056147,-500.0,0.00016986,2]
[338648984,1726845056155,-730.65,0.00016986,2]
[338648985,1726845056164,-500.0,0.00016986,2]
[338648986,1726845056173,-500.0,0.00016986,2]
[338648987,1726845056182,-577.04405517,0.00016986,2]
[338648988,1726845056192,-500.0,0.00016986,2]
[338648989,1726845056201,-500.0,0.00016986,2]
[338648990,1726845056210,-500.0,0.00016986,2]
[338648991,1726845056219,-575.79,0.00016986,2]
[338648992,1726845056227,-446.66185204,0.00016986,2]
[338648993,1726845056238,-652.89,0.00016986,2]
[338648994,1726845056247,-606.56,0.00016986,2]
[338648995,1726845056256,-151.0,0.00016986,2]
[338648996,1726845056265,-516.89,0.00016986,2]
[338648997,1726845056274,-297.63,0.00016986,2]
[338648998,1726845056283,-500.0,0.00016986,2]
[338648999,1726845056292,-151.0,0.00016986,2]
[338649000,1726845056302,-500.0,0.00016986,2]
[338649001,1726845056311,-151.0,0.00016986,2]
[338649002,1726845056320,-500.0,0.00016986,2]
[338649003,1726845056330,-2101.61,0.00016986,2]
[338649004,1726845056340,-500.0,0.00016986,2]
[338649005,1726845056349,-500.0,0.00016986,2]
[338649006,1726845056358,-500.0,0.00016986,2]
[338649007,1726845056371,-500.0,0.00016986,2]
[338649008,1726845056380,-500.0,0.00016986,2]
[338649009,1726845056388,-500.0,0.00016986,2]
[338649010,1726845056397,-567.3,0.00016986,2]
[338649011,1726845056406,-500.0,0.00016986,2]
[338649012,1726845056415,-500.0,0.00016986,2]
[338649013,1726845056424,-500.0,0.00016986,2]
[338649014,1726845056434,-500.0,0.00016986,2]
[338649015,1726845056443,-176.12,0.00016986,2]
[338649016,1726845056451,-151.0,0.00016986,2]
[338649017,1726845056460,-1041.76,0.00016986,2]
[338649018,1726845056469,-500.0,0.00016986,2]
[338649019,1726845056478,-630.64,0.00016986,2]
[338649020,1726845056487,-436.15221317,0.00016986,2]
[338649021,1726845056496,-500.0,0.00016986,2]
[338649022,1726845056504,-151.0,0.00016986,2]
[338649023,1726845056514,-500.0,0.00016986,2]
[338649024,1726845056523,-500.0,0.00016986,2]
[338649025,1726845056533,-500.0,0.00016986,2]
[338649026,1726845056542,-500.0,0.00016986,2]
[338649027,1726845056551,-500.0,0.00016986,2]
[338649028,1726845056560,-500.0,0.00016986,2]
[338649029,1726845056569,-500.0,0.00016986,2]
[338649030,1726845056581,-500.0,0.00016986,2]
[338649031,1726845056593,-240.27,0.00016986,2]
[338649032,1726845056602,-500.0,0.00016986,2]
[338649033,1726845056610,-500.0,0.00016986,2]
[338649034,1726845056619,-151.0,0.00016986,2]
[338649035,1726845056628,-151.0,0.00016986,2]
[338649036,1726845056639,-500.0,0.00016986,2]
[338649037,1726845056647,-747.85,0.00016986,2]
[338649038,1726845056656,-500.0,0.00016986,2]
[338649039,1726845056666,-500.0,0.00016986,2]
[338649040,1726845056675,-500.0,0.00016986,2]
[338649041,1726845056685,-169.15526229,0.00016986,2]
[338649042,1726845056694,-500.0,0.00016986,2]
[338649043,1726845056703,-219.85098782,0.00016986,2]
[338649044,1726845056711,-500.0,0.00016986,2]
[338649045,1726845056721,-526.91,0.00016986,2]
[338649046,1726845056730,-433.282447,0.00016986,2]
[338649047,1726845056739,-433.282447,0.00016986,2]
[338649048,1726845056748,-693.76,0.00016986,2]
[338649049,1726845056757,-500.0,0.00016986,2]
[338649050,1726845056766,-433.282447,0.00016986,2]
[338649051,1726845056775,-433.282447,0.00016986,2]
[338649052,1726845056784,-151.0,0.00016986,2]
[338649053,1726845056793,-176.08519079,0.00016986,2]
[338649054,1726845056802,-500.0,0.00016986,2]
[338649055,1726845056811,-711.78,0.00016986,2]
[338649056,1726845056819,-500.0,0.00016986,2]
[338649057,1726845056832,-510.31,0.00016986,2]
[338649058,1726845056841,-840.02,0.00016986,2]
[338649059,1726845056850,-500.0,0.00016986,2]
[338649060,1726845056859,-500.0,0.00016986,2]
[338649061,1726845056868,-500.0,0.00016986,2]
[338649062,1726845056877,-165.263601,0.00016986,2]
[338649063,1726845056886,-165.263601,0.00016986,2]
[338649064,1726845056902,-165.263601,0.00016986,2]
[338649065,1726845056915,-165.263601,0.00016986,2]
[338649066,1726845056924,-500.0,0.00016986,2]
[338649067,1726845056933,-500.0,0.00016986,2]
[338649068,1726845056942,-451.8159181,0.00016986,2]
[338649069,1726845056951,-500.0,0.00016986,2]
[338649070,1726845056960,-380.67,0.00016986,2]
[338649071,1726845056969,-500.0,0.00016986,2]
[338649072,1726845056979,-500.0,0.00016986,2]
[338649073,1726845056988,-451.219872,0.00016986,2]
[338649074,1726845056998,-451.219872,0.00016986,2]
[338649075,1726845057007,-500.0,0.00016986,2]
[338649076,1726845057017,-1076.45659559,0.00016986,2]
[338649077,1726845057026,-303.04,0.00016986,2]
[338649078,1726845057036,-707.82,0.00016986,2]
[338649079,1726845057045,-500.0,0.00016986,2]
[338649080,1726845057054,-500.0,0.00016986,2]
[338649081,1726845057063,-500.0,0.00016986,2]
[338649082,1726845057073,-439.183164,0.00016986,2]
[338649083,1726845057082,-713.32,0.00016986,2]
[338649084,1726845057091,-151.0,0.00016986,2]
[338649085,1726845057101,-439.183164,0.00016986,2]
[338649086,1726845057110,-807.34,0.00016986,2]
[338649087,1726845057119,-500.0,0.00016986,2]
[338649088,1726845057129,-58932.27,0.00016986,2]
[338649089,1726845057138,-512.42,0.00016986,2]
[338649090,1726845057147,-1533.92,0.00016986,2]
[338649091,1726845057156,-8334.76,0.00016986,2]
[338649092,1726845057166,-835.97,0.00016986,2]
[338649093,1726845057175,-506.10607374,0.00016986,2]
[338649094,1726845057184,-500.0,0.00016986,2]
[338649095,1726845057194,-500.0,0.00016986,2]
[338649096,1726845057203,-719.41,0.00016986,2]
[338649097,1726845057212,-500.0,0.00016986,2]
[338649098,1726845057221,-429.08,0.00016986,2]
[338649099,1726845057231,-736.12,0.00016986,2]
[338649100,1726845057241,-500.0,0.00016986,2]
[338649101,1726845057251,-500.0,0.00016986,2]
[338649102,1726845057260,-592.83,0.00016986,2]
[338649103,1726845057271,-607.97112031,0.00016986,2]
[338649104,1726845057280,-500.0,0.00016986,2]
[338649105,1726845057290,-364.86,0.00016986,2]
[338649106,1726845057299,-531.4,0.00016986,2]
[338649107,1726845057309,-282.710258,0.00016986,2]
[338649108,1726845057318,-151.0,0.00016986,2]
[338649109,1726845057328,-282.710258,0.00016986,2]
[338649110,1726845057338,-511.27,0.00016986,2]
[338649111,1726845057348,-500.0,0.00016986,2]
[338649112,1726845057360,-500.0,0.00016986,2]
[338649113,1726845057372,-655.41,0.00016986,2]
[338649114,1726845057383,-2411.57,0.00016986,2]
[338649115,1726845057393,-500.0,0.00016986,2]
[338649116,1726845057403,-500.0,0.00016986,2]
[338649117,1726845057415,-500.0,0.00016986,2]
[338649118,1726845057427,-500.0,0.00016986,2]
[338649119,1726845057440,-768.5,0.00016986,2]
[338649120,1726845057450,-500.0,0.00016986,2]
[338649121,1726845057664,-500.0,0.00016986,2]
[338649122,1726845057673,-500.0,0.00016986,2]
[338649123,1726845057682,-526.55,0.00016986,2]
[338649124,1726845057691,-500.0,0.00016986,2]
[338649125,1726845057700,-620.05,0.00016986,2]
[338649126,1726845057709,-500.0,0.00016986,2]
[338649127,1726845057718,-500.0,0.00016986,2]
[338649128,1726845057727,-500.0,0.00016986,2]
[338649129,1726845057736,-1302.15,0.00016986,2]
[338649130,1726845057745,-518.85,0.00016986,2]
[338649131,1726845057754,-842.63,0.00016986,2]
[338649132,1726845057763,-500.0,0.00016986,2]
[338649133,1726845057772,-500.0,0.00016986,2]
[338649134,1726845057781,-500.0,0.00016986,2]
[338649135,1726845057790,-500.0,0.00016986,2]
[338649136,1726845057800,-500.0,0.00016986,2]
[338649137,1726845057809,-500.0,0.00016986,2]
[338649138,1726845057818,-309.73,0.00016986,2]
[338649139,1726845057828,-500.0,0.00016986,2]
[338649140,1726845057838,-500.0,0.00016986,2]
[338649141,1726845057847,-601.16,0.00016986,2]
[338649142,1726845057856,-595.24,0.00016986,2]
[338649143,1726845057865,-500.0,0.00016986,2]
[338649144,1726845057874,-287.18125232,0.00016986,2]
[338649145,1726845057884,-500.0,0.00016986,2]
[338649146,1726845057893,-500.0,0.00016986,2]
[338649147,1726845057906,-500.0,0.00016986,2]
[338649148,1726845057915,-500.0,0.00016986,2]
[338649149,1726845057925,-500.0,0.00016986,2]
[338649150,1726845057934,-610.00246249,0.00016986,2]
[338649151,1726845057944,-500.0,0.00016986,2]
[338649152,1726845057954,-500.0,0.00016986,2]
[338649153,1726845057963,-884.959671,0.00016987,2]
[338649154,1726845057972,-265.043597,0.00016987,2]
[338649155,1726845057982,-1060.174387,0.00016987,2]
[338649156,1726845057992,-1000.0,0.00017,17]
[338649157,1726845058001,-1000.0,0.00017,2]
[338649158,1726845058010,-167.338077,0.00017,2]
[338649159,1726845058019,-451.219872,0.00017,2]
[338649160,1726845058028,-451.219872,0.00017,2]
[338649161,1726845058038,-540.117249,0.00017045,2]
[338649162,1726845058047,-201.85906476,0.00017045,2]
[338649163,1726845058056,-151.0,0.00017079,2]
[338649164,1726845058066,-151.0,0.00017079,2]
[338649165,1726845058076,-151.0,0.00017086,2]
[338649166,1726845058086,-600.0,0.000171,2]
[338649167,1726845058096,-600.0,0.000171,2]
[338649168,1726845058105,-600.0,0.000171,2]
[338649169,1726845058114,-600.0,0.000171,2]
[338649170,1726845058123,-716.73807396,0.000171,2]
[338649171,1726845058132,-153.0,0.00017151,2]
[338649172,1726845058142,-153.0,0.00017151,2]
[338649173,1726845058151,-309.8751819,0.00017151,2]
[338649174,1726845058161,-6771.15657089,0.00017177,2]
[338649175,1726845058170,-600.0,0.00017186,2]
[338649176,1726845058180,-884.959671,0.00017196,2]
[338649177,1726845058189,-265.043597,0.00017196,2]
[338649178,1726845058198,-1060.174387,0.00017196,2]
[338649179,1726845058207,-151.0,0.00017197,2]
[338649180,1726845058217,-151.0,0.0001726,2]
[338649181,1726845058226,-500.0,0.0001726,2]
[338649182,1726845058235,-500.0,0.0001726,2]
[338649183,1726845058245,-500.0,0.0001726,2]
[338649184,1726845058254,-287.73218939,0.0001726,2]
[338649185,1726845058264,-516.67,0.0001726,2]
[338649186,1726845058273,-500.0,0.0001726,2]
[338649187,1726845058282,-500.0,0.0001726,2]
[338649188,1726845058292,-519.88798941,0.0001726,2]
[338649189,1726845058301,-500.0,0.0001726,2]
[338649190,1726845058311,-500.0,0.0001726,2]
[338649191,1726845058321,-500.0,0.0001726,2]
[338649192,1726845058330,-500.0,0.0001726,2]
[338649193,1726845058339,-634.44,0.0001726,2]
[338649194,1726845058348,-533.09,0.0001726,2]
[338649195,1726845058359,-500.0,0.0001726,2]
[338649196,1726845058370,-500.0,0.0001726,2]
[338649197,1726845058379,-500.0,0.0001726,2]
[338649198,1726845058389,-171.13255659,0.0001726,2]
[338649199,1726845058398,-794.1,0.0001726,2]
[338649200,1726845058407,-500.0,0.0001726,2]
[338649201,1726845058416,-347.85724891,0.0001726,2]
[338649202,1726845058426,-279.960979,0.0001726,2]
[338649203,1726845058435,-840.7,0.0001726,2]
[338649204,1726845058444,-500.0,0.0001726,2]
[338649205,1726845058454,-500.0,0.0001726,2]
[338649206,1726845058463,-151.0,0.0001726,2]
[338649207,1726845058473,-602.64,0.0001726,2]
[338649208,1726845058482,-500.0,0.0001726,2]
[338649209,1726845058491,-151.0,0.0001726,2]
[338649210,1726845058500,-324.36611061,0.0001726,2]
[338649211,1726845058510,-204.3399437,0.0001726,2]
[338649212,1726845058520,-500.0,0.0001726,2]
[338649213,1726845058529,-500.0,0.0001726,2]
[338649214,1726845058540,-500.0,0.0001726,2]
[338649215,1726845058552,-500.0,0.0001726,2]
[338649216,1726845058561,-500.0,0.0001726,2]
[338649217,1726845058570,-500.0,0.0001726,2]
[338649218,1726845058582,-1962.9,0.0001726,2]
[338649219,1726845058593,-896.38,0.0001726,2]
[338649220,1726845058602,-500.0,0.0001726,2]
[338649221,1726845058612,-500.0,0.0001726,2]
[338649222,1726845058623,-1257.02,0.0001726,2]
[338649223,1726845058633,-780.87,0.0001726,2]
[338649224,1726845058643,-500.0,0.0001726,2]
[338649225,1726845058654,-774.53,0.0001726,2]
[338649226,1726845058664,-1170.96,0.0001726,2]
[338649227,1726845058673,-151.0,0.0001726,2]
[338649228,1726845058683,-500.0,0.0001726,2]
[338649229,1726845058693,-500.0,0.0001726,2]
[338649230,1726845058704,-710.33,0.0001726,2]
[338649231,1726845058715,-501.16918982,0.0001726,2]
[338649232,1726845058725,-1216.41,0.0001726,2]
[338649233,1726845058737,-937.35,0.0001726,2]
[338649234,1726845058747,-500.0,0.0001726,2]
[338649235,1726845058756,-500.0,0.0001726,2]
[338649236,1726845058766,-500.0,0.0001726,2]
[338649237,1726845058775,-1191.1,0.0001726,2]
[338649238,1726845058786,-500.0,0.0001726,2]
[338649239,1726845058807,-500.0,0.0001726,2]
[338649240,1726845058818,-861.2,0.0001726,2]
[338649241,1726845058831,-652.49,0.0001726,2]
[338649242,1726845058842,-500.0,0.0001726,2]
[338649243,1726845058853,-500.0,0.0001726,2]
[338649244,1726845058863,-500.0,0.0001726,2]
[338649245,1726845058873,-500.0,0.0001726,2]
[338649246,1726845058883,-191.21,0.0001726,2]
[338649247,1726845058894,-1052.65,0.0001726,2]
[338649248,1726845058904,-1048.92,0.0001726,2]
[338649249,1726845058914,-500.0,0.0001726,2]
[338649250,1726845058926,-776.74,0.0001726,2]
[338649251,1726845058937,-722.7,0.0001726,2]
[338649252,1726845058948,-532.53,0.0001726,2]
[338649253,1726845058958,-500.0,0.0001726,2]
[338649254,1726845058967,-500.0,0.0001726,2]
[338649255,1726845058976,-684.84,0.0001726,2]
[338649256,1726845058987,-500.0,0.0001726,2]
[338649257,1726845058997,-500.0,0.0001726,2]
[338649258,1726845059010,-500.0,0.0001726,2]
[338649259,1726845059021,-612.28,0.0001726,2]
[338649260,1726845059032,-346.175067,0.0001726,2]
[338649261,1726845059045,-346.175067,0.0001726,2]
[338649262,1726845059056,-500.0,0.0001726,2]
[338649263,1726845059067,-500.0,0.0001726,2]
[338649264,1726845059078,-500.0,0.0001726,2]
[338649265,1726845059087,-529.66,0.0001726,2]
[338649266,1726845059097,-1479.31,0.0001726,2]
[338649267,1726845059108,-500.0,0.0001726,2]
[338649268,1726845059117,-500.0,0.0001726,2]
[338649269,1726845059127,-500.0,0.0001726,2]
[338649270,1726845059137,-500.0,0.0001726,2]
[338649271,1726845059148,-500.0,0.0001726,2]
[338649272,1726845059159,-638.16,0.0001726,2]
[338649273,1726845059168,-500.0,0.0001726,2]
[338649274,1726845059178,-500.0,0.0001726,2]
[338649275,1726845059188,-500.0,0.0001726,2]
[338649276,1726845059197,-1000.0,0.0001726,2]
[338649277,1726845059208,-1000.0,0.0001726,2]
[338649278,1726845059219,-1000.0,0.0001726,2]
[338649279,1726845059231,-1000.0,0.0001726,2]
[338649280,1726845059242,-1000.0,0.0001726,2]
[338649281,1726845059253,-1000.0,0.0001726,2]
[338649282,1726845059263,-1000.0,0.0001726,2]
[338649283,1726845059274,-1000.0,0.0001726,2]
[338649284,1726845059284,-1000.0,0.0001726,2]
[338649285,1726845059294,-795.9,0.0001726,2]
[338649286,1726845059303,-1000.0,0.0001726,2]
[338649287,1726845059313,-202.42,0.0001726,2]
[338649288,1726845059322,-1000.0,0.0001726,2]
[338649289,1726845059332,-1000.0,0.0001726,2]
[338649290,1726845059342,-1000.0,0.0001726,2]
[338649291,1726845059351,-1000.0,0.0001726,2]
[338649292,1726845059364,-400.07004362,0.0001726,2]
[338649293,1726845059376,-1125.11,0.0001726,2]
[338649294,1726845059386,-500.0,0.0001726,2]
[338649295,1726845059396,-500.0,0.0001726,2]
[338649296,1726845059408,-730.65,0.0001726,2]
[338649297,1726845059417,-500.0,0.0001726,2]
[338649298,1726845059426,-500.0,0.0001726,2]
[338649299,1726845059436,-500.0,0.0001726,2]
[338649300,1726845059446,-500.0,0.0001726,2]
[338649301,1726845059455,-575.79,0.0001726,2]
[338649302,1726845059464,-606.56,0.0001726,2]
[338649303,1726845059474,-652.89,0.0001726,2]
[338649304,1726845059483,-151.0,0.0001726,2]
[338649305,1726845059493,-516.89,0.0001726,2]
[338649306,1726845059502,-297.63,0.0001726,2]
[338649307,1726845059511,-500.0,0.0001726,2]
[338649308,1726845059521,-151.0,0.0001726,2]
[338649309,1726845059530,-500.0,0.0001726,2]
[338649310,1726845059540,-151.0,0.0001726,2]
[338649311,1726845059549,-596.23307049,0.0001726,2]
[338649312,1726845059559,-2101.61,0.0001726,2]
[338649313,1726845059569,-500.0,0.0001726,2]
[338649314,1726845059580,-500.0,0.0001726,2]
[338649315,1726845059589,-500.0,0.0001726,2]
[338649316,1726845059598,-359.36514527,0.0001726,2]
[338649317,1726845059609,-500.0,0.0001726,2]
[338649318,1726845059619,-500.0,0.0001726,2]
[338649319,1726845059630,-567.3,0.0001726,2]
[338649320,1726845059641,-500.0,0.0001726,2]
[338649321,1726845059650,-500.0,0.0001726,2]
[338649322,1726845059659,-500.0,0.0001726,2]
[338649323,1726845059669,-500.0,0.0001726,2]
[338649324,1726845059678,-151.0,0.0001726,2]
[338649325,1726845059688,-1041.76,0.0001726,2]
[338649326,1726845059697,-500.0,0.0001726,2]
[338649327,1726845059707,-630.64,0.0001726,2]
[338649328,1726845059716,-500.0,0.0001726,2]
[338649329,1726845059726,-242.181537,0.0001726,2]
[338649330,1726845059735,-500.0,0.0001726,2]
[338649331,1726845059745,-500.0,0.0001726,2]
[338649332,1726845059755,-500.0,0.0001726,2]
[338649333,1726845059764,-500.0,0.0001726,2]
[338649334,1726845059774,-500.0,0.0001726,2]
[338649335,1726845059783,-500.0,0.0001726,2]
[338649336,1726845059792,-500.0,0.0001726,2]
[338649337,1726845059801,-500.0,0.0001726,2]
[338649338,1726845059811,-500.0,0.0001726,2]
[338649339,1726845059820,-151.0,0.0001726,2]
[338649340,1726845059834,-500.0,0.0001726,2]
[338649341,1726845059843,-747.85,0.0001726,2]
[338649342,1726845059856,-179.65,0.0001726,2]
[338649343,1726845059866,-500.0,0.0001726,2]
[338649344,1726845059875,-500.0,0.0001726,2]
[338649345,1726845059884,-500.0,0.0001726,2]
[338649346,1726845059894,-500.0,0.0001726,2]
[338649347,1726845059904,-526.91,0.0001726,2]
[338649348,1726845059914,-433.282447,0.0001726,2]
[338649349,1726845059923,-693.76,0.0001726,2]
[338649350,1726845059933,-500.0,0.0001726,2]
[338649351,1726845059942,-433.282447,0.0001726,2]
[338649352,1726845059952,-500.0,0.0001726,2]
[338649353,1726845059961,-711.78,0.0001726,2]
[338649354,1726845059970,-500.0,0.0001726,2]
[338649355,1726845059980,-510.31,0.0001726,2]
[338649356,1726845059990,-840.02,0.0001726,2]
[338649357,1726845060000,-500.0,0.0001726,2]
[338649358,1726845060010,-500.0,0.0001726,2]
[338649359,1726845060019,-500.0,0.0001726,2]
[338649360,1726845060029,-165.263601,0.0001726,2]
[338649361,1726845060039,-165.263601,0.0001726,2]
[338649362,1726845060049,-500.0,0.0001726,2]
[338649363,1726845060059,-500.0,0.0001726,2]
[338649364,1726845060069,-461.24020126,0.0001726,2]
[338649365,1726845060080,-500.0,0.0001726,2]
[338649366,1726845060090,-500.0,0.0001726,2]
[338649367,1726845060099,-451.219872,0.0001726,2]
[338649368,1726845060109,-451.219872,0.0001726,2]
[338649369,1726845060118,-500.0,0.0001726,2]
[338649370,1726845060127,-707.82,0.0001726,2]
[338649371,1726845060137,-500.0,0.0001726,2]
[338649372,1726845060147,-477.52307908,0.0001726,2]
[338649373,1726845060156,-439.183164,0.0001726,2]
[338649374,1726845060166,-713.32,0.0001726,2]
[338649375,1726845060176,-255.061028,0.0001726,2]
[338649376,1726845060186,-439.183164,0.0001726,2]
[338649377,1726845060195,-807.34,0.0001726,2]
[338649378,1726845060205,-500.0,0.0001726,2]
[338649379,1726845060215,-58932.27,0.0001726,2]
[338649380,1726845060224,-512.42,0.0001726,2]
[338649381,1726845060234,-1533.92,0.0001726,2]
[338649382,1726845060243,-8334.76,0.0001726,2]
[338649383,1726845060253,-835.97,0.0001726,2]
[338649384,1726845060262,-500.0,0.0001726,2]
[338649385,1726845060272,-500.0,0.0001726,2]
[338649386,1726845060282,-719.41,0.0001726,2]
[338649387,1726845060292,-500.0,0.0001726,2]
[338649388,1726845060301,-736.12,0.0001726,2]
[338649389,1726845060311,-425.24456235,0.0001726,2]
[338649390,1726845060320,-498.31916212,0.0001726,2]
[338649391,1726845060332,-592.83,0.0001726,2]
[338649392,1726845060342,-428.16094256,0.0001726,2]
[338649393,1726845060352,-531.4,0.0001726,2]
[338649394,1726845060365,-282.710258,0.0001726,2]
[338649395,1726845060374,-151.0,0.0001726,2]
[338649396,1726845060384,-282.710258,0.0001726,2]
[338649397,1726845060394,-500.0,0.0001726,2]
[338649398,1726845060404,-500.0,0.0001726,2]
[338649399,1726845060413,-655.41,0.0001726,2]
[338649400,1726845060422,-2411.57,0.0001726,2]
[338649401,1726845060432,-500.0,0.0001726,2]
[338649402,1726845060442,-254.86,0.0001726,2]
[338649403,1726845060451,-175.25647326,0.0001726,2]
[338649404,1726845060461,-632.1,0.0001726,2]
[338649405,1726845060470,-768.5,0.0001726,2]
[338649406,1726845060479,-500.0,0.0001726,2]
[338649407,1726845060490,-500.0,0.0001726,2]
[338649408,1726845060499,-500.0,0.0001726,2]
[338649409,1726845060509,-526.55,0.0001726,2]
[338649410,1726845060518,-154.92208582,0.0001726,2]
[338649411,1726845060528,-620.05,0.0001726,2]
[338649412,1726845060540,-500.0,0.0001726,2]
[338649413,1726845060550,-500.0,0.0001726,2]
[338649414,1726845060560,-500.0,0.0001726,2]
[338649415,1726845060571,-1302.15,0.0001726,2]
[338649416,1726845060582,-842.63,0.0001726,2]
[338649417,1726845060591,-247.63,0.0001726,2]
[338649418,1726845060601,-500.0,0.0001726,2]
[338649419,1726845060611,-500.0,0.0001726,2]
[338649420,1726845060622,-397.53226942,0.0001726,2]
[338649421,1726845060633,-500.0,0.0001726,2]